bitfinex/quotes_SOLUSD_20251024
["timestamp","ask_amount","ask_price","bid_price","bid_amount"]
[1761332341410,2.93064107,192.02,191.98,67.8686958]
[1761332342601,2.26064107,192.02,191.99,0.66]
[1761332343103,2.93064107,192.02,191.99,0.66]
[1761332344092,2.93064107,192.02,191.99,5.86859723]
[1761332344805,2.93064107,192.02,191.99,5.20859723]
[1761332344987,2.26064107,192.01,191.98,67.86884617]
[1761332345601,2.26064107,192.01,191.98,67.20884617]
[1761332345910,2.26064107,192.01,191.98,170.16884617]
[1761332346212,0.67,192.02,191.98,170.16884617]
[1761332346381,2.93064107,192.02,191.98,169.50884617]
[1761332346583,2.93064107,192.02,191.99,0.66]
[1761332346910,2.93064107,192.02,191.98,170.16884617]
[1761332348005,8.13858628,192.02,191.98,164.96]
[1761332348206,2.93064107,192.01,191.98,164.3]
[1761332348520,7.46858628,192.02,191.98,164.96]
[1761332348725,0.67,192.01,191.98,164.3]
[1761332349017,8.73730328,192.02,191.98,164.96]
[1761332349308,9.40730328,192.02,191.98,164.96]
[1761332350194,9.40730328,192.02,191.99,0.66]
[1761332351923,9.40730328,192.02,191.99,62.66]
[1761332352310,0.67,192.02,191.99,62.66]
[1761332352516,9.40687045,192.04,192.0,0.66]
[1761332352816,0.67,192.03,192.0,62.0]
[1761332356123,4.19935807,192.03,192.0,62.0]
[1761332356413,9.40701778,192.03,192.0,62.0]
[1761332356607,0.67,192.02,192.0,62.0]
[1761332360492,9.40722957,192.02,192.0,62.0]
[1761332360802,3.52935807,192.01,192.0,62.0]
[1761332360992,4.19935807,192.01,192.0,62.0]
[1761332363809,4.19935807,192.01,191.98,62.0]
[1761332364015,4.19935807,192.0,191.98,62.0]
[1761332364192,3.52935807,191.99,191.98,62.0]
[1761332364397,4.19935807,191.99,191.98,62.0]
[1761332368624,3.52935807,192.0,191.98,62.0]
[1761332368919,4.19935807,192.0,191.98,62.0]
[1761332369919,0.67,191.99,191.98,62.0]
[1761332370125,4.19935807,191.99,191.98,62.0]
[1761332370724,3.52935807,191.99,191.98,62.0]
[1761332370917,3.52935807,192.0,191.98,62.0]
[1761332371118,4.19935807,192.0,191.98,62.0]
[1761332371310,3.52935807,191.99,191.98,62.0]
[1761332371707,4.19935807,191.99,191.98,62.0]
[1761332372408,15.64986045,192.02,191.98,62.68]
[1761332372619,3.52935807,192.01,191.98,62.0]
[1761332372926,4.19935807,192.02,191.98,103.98887005]
[1761332373606,8.73687772,192.03,191.99,0.68]
[1761332374112,0.67,192.02,191.99,0.68]
[1761332374320,0.67,192.02,191.98,103.98887005]
[1761332374501,4.19935807,192.02,191.98,103.98887005]
[1761332374928,4.19935807,192.02,191.98,103.30887005]
[1761332374929,0.67,192.01,191.98,103.30887005]
[1761332376319,3.52935807,192.02,191.98,103.98887005]
[1761332376525,4.19935807,192.02,191.98,103.98887005]
[1761332377417,4.19935807,192.02,191.98,67.88887005]
[1761332377725,4.19935807,192.02,191.99,36.1]
[1761332378326,0.67,192.01,191.99,36.1]
[1761332381022,4.19935807,192.01,191.99,36.1]
[1761332381522,4.19935807,192.01,191.99,98.1]
[1761332383022,8.7371976,192.02,191.99,98.1]
[1761332383229,9.4071976,192.02,191.99,98.1]
[1761332383421,8.7371976,192.02,191.99,98.78]
[1761332383721,9.4071976,192.02,191.99,98.78]
[1761332384230,9.4071976,192.02,191.99,62.68]
[1761332384427,9.4071976,192.02,191.99,62.0]
[1761332384627,0.67,192.01,191.99,62.0]
[1761332384835,4.19935807,192.01,191.99,62.0]
[1761332385237,0.67,192.0,191.99,62.0]
[1761332386731,4.19935807,192.0,191.99,62.0]
[1761332388536,0.67,192.0,191.99,62.0]
[1761332389220,9.40742582,192.01,191.99,62.0]
[1761332389734,8.73742582,192.01,191.99,62.0]
[1761332389930,9.44742582,192.01,191.99,62.0]
[1761332390309,0.71,192.0,191.99,62.0]
[1761332390522,4.23935807,192.0,191.99,62.0]
[1761332391521,3.52935807,192.0,191.99,62.0]
[1761332391838,3.52935807,192.01,191.99,62.0]
[1761332392016,4.23935807,192.0,191.99,62.0]
[1761332392511,3.52935807,192.0,191.99,62.0]
[1761332394739,4.23935807,192.0,191.99,62.0]
[1761332395042,0.71,192.0,191.99,62.0]
[1761332395339,4.23935807,192.01,191.99,62.0]
[1761332395723,4.23935807,192.0,191.99,62.0]
[1761332396430,3.52935807,192.0,191.99,62.0]
[1761332397144,3.52935807,192.01,191.99,62.0]
[1761332397440,0.69,192.0,191.99,62.0]
[1761332398137,4.21935807,192.01,191.99,62.0]
[1761332398440,4.21935807,192.0,191.99,62.0]
[1761332398741,3.52935807,192.0,191.99,62.0]
[1761332398945,4.21935807,192.01,191.99,62.0]
[1761332400942,3.52935807,192.02,192.0,0.68]
[1761332401147,22.88,192.05,192.0,0.68]
[1761332401334,28.08787669,192.05,192.0,102.30935807]
[1761332401533,22.88,192.05,192.0,102.30935807]
[1761332401847,26.40935807,192.05,192.01,0.68]
[1761332402140,27.09935807,192.05,192.01,0.68]
[1761332402338,23.57,192.05,192.01,0.68]
[1761332402532,27.09935807,192.05,192.01,0.68]
[1761332402933,32.30637591,192.05,192.01,0.68]
[1761332403239,0.89,192.06,192.01,0.68]
[1761332403426,3.52935807,192.05,192.01,0.68]
[1761332404038,4.21935807,192.05,192.01,0.68]
[1761332404226,5.89714699,192.05,192.01,0.68]
[1761332404427,9.42650506,192.05,192.01,0.68]
[1761332405343,9.42650506,192.05,192.01,62.68]
[1761332406163,4.21935807,192.04,192.01,62.0]
[1761332406351,3.52935807,192.02,191.99,62.0]
[1761332406648,3.52935807,192.0,191.99,62.0]
[1761332406836,3.52935807,192.0,191.98,0.68]
[1761332407353,3.52935807,192.0,191.96,98.78]
[1761332407550,3.52935807,192.0,191.96,103.98935833]
[1761332407844,3.52935807,192.0,191.97,0.68]
[1761332408352,3.52935807,192.0,191.97,5.8889745]
[1761332409332,3.52935807,192.0,191.97,0.68]
[1761332409532,3.52935807,191.99,191.97,0.68]
[1761332409736,3.52935807,191.99,191.96,98.1]
[1761332410037,3.52935807,191.98,191.97,36.1]
[1761332410240,5.89807668,192.01,191.97,36.1]
[1761332410543,4.21935807,192.0,191.97,36.1]
[1761332410854,2.94920589,192.0,191.97,36.1]
[1761332411030,2.25920589,191.99,191.97,36.1]
[1761332411230,2.25920589,191.99,191.97,98.1]
[1761332411447,2.25920589,191.99,191.97,62.0]
[1761332411641,2.25920589,191.98,191.97,62.0]
[1761332411841,2.25920589,191.98,191.97,49.0]
[1761332412651,2.25920589,191.99,191.97,49.0]
[1761332413149,2.25920589,191.99,191.97,49.68]
[1761332413355,2.25920589,191.99,191.97,54.20911745]
[1761332413658,2.25920589,192.0,191.98,0.68]
[1761332414240,2.25920589,192.0,191.97,54.20911745]
[1761332414454,2.25920589,192.0,191.97,54.88911745]
[1761332414660,2.25920589,191.99,191.97,54.20911745]
[1761332414952,2.25920589,191.99,191.97,49.0]
[1761332416463,2.25920589,191.99,191.97,54.88911463]
[1761332417350,2.25920589,191.99,191.97,54.20911463]
[1761332417963,2.25920589,191.99,191.97,54.88911463]
[1761332419164,5.89826187,192.01,191.97,54.88911463]
[1761332419363,5.20826187,192.03,191.98,5.88887592]
[1761332419542,2.25920589,192.03,191.98,41.98887592]
[1761332419860,2.25920589,192.02,191.99,0.71]
[1761332420039,2.25920589,192.02,191.99,36.81]
[1761332420439,2.25920589,192.02,191.99,36.1]
[1761332420638,2.25920589,192.01,191.99,36.1]
[1761332420855,2.25920589,192.01,191.99,36.81]
[1761332421648,2.25920589,192.0,191.99,36.1]
[1761332423043,2.25920589,192.0,191.99,85.1]
[1761332423243,2.25920589,192.01,191.99,85.1]
[1761332423766,2.25920589,192.01,191.99,49.0]
[1761332426548,2.25920589,192.01,191.99,49.71]
[1761332427770,2.25920589,192.02,191.99,49.71]
[1761332428164,2.25920589,192.02,192.0,0.71]
[1761332428359,13.54824057,192.12,192.0,85.81]
[1761332428360,22.88,192.07,192.0,85.81]
[1761332428566,0.2,192.06,192.0,85.81]
[1761332428769,2.25920589,192.05,192.01,0.71]
[1761332429650,2.25920589,192.05,192.01,5.91793844]
[1761332430073,2.25920589,192.05,192.02,0.71]
[1761332430264,2.25920589,192.03,192.01,0.71]
[1761332430854,0.91,192.06,192.02,36.1]
[1761332431183,2.25920589,192.05,192.02,36.1]
[1761332431472,0.2,192.06,192.03,0.71]
[1761332432373,2.45920589,192.06,192.03,0.71]
[1761332432569,2.45920589,192.06,192.03,5.91750438]
[1761332432765,0.2,192.06,192.04,0.71]
[1761332432965,0.2,192.06,192.04,36.81]
[1761332433474,0.2,192.06,192.05,2.96920589]
[1761332433973,0.2,192.06,192.05,8.17618323]
[1761332434271,0.2,192.06,192.05,36.1]
[1761332434572,0.2,192.06,192.05,0.71]
[1761332435075,0.2,192.06,192.05,36.79]
[1761332435851,0.2,192.06,192.05,41.99697734]
[1761332437979,0.2,192.06,192.05,90.99697734]
[1761332439583,0.2,192.06,192.05,85.79]
[1761332440286,2.45920589,192.06,192.05,49.0]
[1761332440460,2.45920589,192.06,192.05,49.71]
[1761332440461,0.2,192.06,192.05,49.71]
[1761332440865,0.2,192.06,192.05,49.0]
[1761332441070,0.2,192.06,192.05,49.71]
[1761332442477,0.2,192.06,192.05,54.91697734]
[1761332445486,0.2,192.06,192.05,159.47618323]
[1761332445988,0.2,192.06,192.05,171.25971574]
[1761332446493,0.2,192.06,192.05,159.47618323]
[1761332450271,11.78353251,192.08,192.06,48.8]
[1761332450598,11.78353251,192.08,192.07,38.33920589]
[1761332450770,11.78353251,192.08,192.07,190.15920589]
[1761332451376,11.78353251,192.08,192.07,195.36564104]
[1761332452971,11.78353251,192.08,192.07,159.28564104]
[1761332453177,11.78353251,192.08,192.07,195.36564104]
[1761332453578,11.78353251,192.08,192.07,159.28564104]
[1761332453786,11.78353251,192.08,192.07,195.36564104]
[1761332458700,0.2,192.11,192.1,37.01646749]
[1761332458893,0.2,192.11,192.1,175.39646749]
[1761332459086,0.2,192.11,192.1,140.02646749]
[1761332459280,0.2,192.11,192.1,176.10646749]
[1761332459902,0.2,192.11,192.1,181.31208956]
[1761332463300,0.2,192.11,192.1,183.57129545]
[1761332465804,0.2,192.11,192.1,185.65587736]
[1761332466181,0.2,192.11,192.1,183.57129545]
[1761332466380,0.2,192.11,192.1,145.23208956]
[1761332466684,0.2,192.11,192.1,182.86129545]
[1761332466875,0.2,192.11,192.1,180.60208956]
[1761332467078,0.2,192.11,192.1,181.31208956]
[1761332469811,0.2,192.11,192.1,183.55129545]
[1761332472793,0.2,192.11,192.1,184.81585669]
[1761332473493,0.67,192.15,192.12,36.61646749]
[1761332473785,0.67,192.15,192.13,36.06]
[1761332474003,3.52376713,192.14,192.11,36.61646749]
[1761332474203,3.52376713,192.12,192.11,36.61646749]
[1761332474392,3.52376713,192.13,192.11,36.61646749]
[1761332475005,0.67,192.14,192.11,36.61646749]
[1761332475006,0.67,192.12,192.11,36.61646749]
[1761332477692,4.19376713,192.12,192.11,36.61646749]
[1761332480292,0.67,192.12,192.11,36.61646749]
[1761332480512,4.19376713,192.12,192.11,36.61646749]
[1761332481602,9.39884728,192.12,192.09,36.61646749]
[1761332481791,3.52376713,192.1,192.09,36.61646749]
[1761332482187,4.18376713,192.1,192.09,36.61646749]
[1761332482717,3.52376713,192.12,192.09,73.37646749]
[1761332482923,4.18376713,192.12,192.09,78.58222112]
[1761332483294,0.66,192.14,192.09,77.88222112]
[1761332483493,4.18376713,192.14,192.1,0.7]
[1761332483694,4.18376713,192.14,192.11,36.08]
[1761332484122,3.52376713,192.14,192.11,36.08]
[1761332484430,4.18376713,192.13,192.11,36.08]
[1761332485313,0.66,192.13,192.11,36.08]
[1761332485708,8.72847125,192.14,192.11,36.08]
[1761332485902,4.18376713,192.13,192.11,36.08]
[1761332486421,0.66,192.12,192.11,36.08]
[1761332486612,4.18376713,192.13,192.11,36.08]
[1761332488421,4.18376713,192.13,192.11,72.69646749]
[1761332489420,0.66,192.12,192.11,72.69646749]
[1761332490121,4.18376713,192.12,192.11,72.69646749]
[1761332491195,0.66,192.12,192.11,72.69646749]
[1761332491603,3.52376713,192.13,192.11,72.69646749]
[1761332491817,0.66,192.12,192.11,72.69646749]
[1761332492521,3.52376713,192.13,192.11,72.69646749]
[1761332492704,4.18376713,192.13,192.11,72.69646749]
[1761332493826,0.66,192.13,192.11,36.61646749]
[1761332494617,9.38805591,192.15,192.12,0.7]
[1761332494800,9.38805591,192.15,192.11,37.31646749]
[1761332495001,0.66,192.14,192.11,37.31646749]
[1761332495323,0.66,192.15,192.11,41.82177654]
[1761332495626,0.66,192.18,192.12,40.28376713]
[1761332495925,0.66,192.17,192.12,179.20023462]
[1761332496236,3.52376713,192.18,192.13,0.7]
[1761332496528,4.18376713,192.18,192.14,36.08]
[1761332496711,0.66,192.17,192.14,36.08]
[1761332497228,4.18376713,192.17,192.14,36.08]
[1761332497609,3.52376713,192.17,192.14,36.08]
[1761332497809,4.18376713,192.17,192.14,36.08]
[1761332498427,4.18376713,192.17,192.14,36.78]
[1761332498625,4.18376713,192.17,192.14,36.08]
[1761332498825,4.18376713,192.17,192.14,36.78]
[1761332499631,3.52376713,192.17,192.15,0.7]
[1761332499815,8.72726691,192.18,192.15,0.7]
[1761332500215,8.72726691,192.18,192.15,37.31646749]
[1761332500827,8.72726691,192.18,192.15,36.61646749]
[1761332501030,0.66,192.17,192.15,36.61646749]
[1761332501242,3.52376713,192.16,192.15,36.61646749]
[1761332502338,4.18376713,192.17,192.15,36.61646749]
[1761332503036,4.18376713,192.16,192.15,36.61646749]
[1761332504038,4.18376713,192.16,192.13,72.69646749]
[1761332504235,3.52376713,192.14,192.1,41.82185817]
[1761332504534,5.86442005,192.15,192.11,36.08]
[1761332504535,3.52376713,192.13,192.11,36.08]
[1761332504720,3.52376713,192.13,192.11,36.78]
[1761332504926,4.18376713,192.14,192.11,36.78]
[1761332505631,4.18376713,192.13,192.11,36.08]
[1761332505821,3.52376713,192.12,192.11,36.08]
[1761332506540,4.18376713,192.12,192.11,36.08]
[1761332508349,3.52376713,192.12,192.11,36.08]
[1761332509248,3.52376713,192.12,192.11,72.69646749]
[1761332510128,3.52376713,192.12,192.11,36.61646749]
[1761332511151,3.52376713,192.12,192.11,37.29646749]
[1761332511448,3.52376713,192.13,192.11,37.29646749]
[1761332513358,3.52376713,192.13,192.11,36.61646749]
[1761332513532,0.69,192.13,192.11,36.61646749]
[1761332513732,3.52376713,192.12,192.11,36.61646749]
[1761332514941,0.69,192.16,192.11,42.50181859]
[1761332515249,3.52376713,192.14,192.11,42.50181859]
[1761332516455,0.69,192.13,192.11,41.82181859]
[1761332516628,3.52376713,192.14,192.11,41.82181859]
[1761332516829,3.52376713,192.13,192.11,36.61646749]
[1761332517156,3.52376713,192.13,192.11,37.28646749]
[1761332518848,0.69,192.14,192.11,37.28646749]
[1761332519054,3.52376713,192.13,192.11,37.28646749]
[1761332519552,0.69,192.14,192.11,37.28646749]
[1761332519742,3.52376713,192.13,192.11,37.28646749]
[1761332521551,0.69,192.14,192.11,37.28646749]
[1761332521747,13.00924504,192.18,192.11,37.28646749]
[1761332521748,4.23376713,192.13,192.11,36.61646749]
[1761332522756,3.52376713,192.12,192.11,36.61646749]
[1761332523457,4.23376713,192.12,192.11,36.61646749]
[1761332523952,3.52376713,192.12,192.11,36.61646749]
[1761332524851,3.52376713,192.12,192.11,37.28646749]
[1761332525256,3.52376713,192.13,192.11,37.28646749]
[1761332526155,3.52376713,192.13,192.11,42.49179325]
[1761332526340,4.23376713,192.15,192.11,42.49179325]
[1761332526538,13.00924504,192.18,192.12,36.73]
[1761332526539,3.52376713,192.17,192.12,36.73]
[1761332526850,3.52376713,192.17,192.13,0.67]
[1761332527051,3.52376713,192.18,192.14,36.08]
[1761332527238,3.52376713,192.18,192.14,41.28431467]
[1761332527558,3.52376713,192.18,192.15,0.67]
[1761332527762,3.52376713,192.18,192.15,37.28646749]
[1761332528271,0.2,192.2,192.16,36.73]
[1761332528553,0.2,192.2,192.17,3.52376713]
[1761332528866,0.2,192.2,192.18,36.1]
[1761332529066,0.2,192.2,192.18,36.77]
[1761332529269,0.2,192.2,192.19,5.87318434]
[1761332530346,0.2,192.2,192.18,5.87335356]
[1761332530649,0.2,192.2,192.19,0.67]
[1761332531158,0.2,192.2,192.19,36.77]
[1761332531363,0.2,192.2,192.19,5.87318434]
[1761332531536,0.2,192.2,192.19,41.97318434]
[1761332532357,0.2,192.2,192.19,45.49695147]
[1761332532737,0.2,192.2,192.19,44.22622362]
[1761332533975,0.2,192.2,192.19,5.87318434]
[1761332534171,0.2,192.2,192.19,41.97318434]
[1761332536361,0.2,192.2,192.19,44.22622362]
[1761332539142,0.2,192.2,192.19,41.97318434]
[1761332539462,0.2,192.2,192.18,0.68]
[1761332539669,0.88,192.2,192.18,36.1]
[1761332539846,0.2,192.2,192.18,36.1]
[1761332540046,0.2,192.2,192.19,0.68]
[1761332540258,0.2,192.2,192.18,43.55636278]
[1761332540558,0.2,192.2,192.18,41.9833235]
[1761332542039,0.2,192.2,192.18,41.3033235]
[1761332542240,0.2,192.2,192.19,5.88318434]
[1761332542455,0.2,192.2,192.19,8.13622362]
[1761332542661,0.2,192.2,192.19,44.23622362]
[1761332544039,0.2,192.2,192.19,41.98318434]
[1761332544662,0.2,192.2,192.19,5.88318434]
[1761332544864,0.2,192.2,192.19,41.98318434]
[1761332546449,0.2,192.2,192.19,41.30318434]
[1761332547444,0.88,192.2,192.19,36.1]
[1761332547668,0.2,192.2,192.19,36.1]
[1761332548644,0.2,192.2,192.19,41.30318434]
[1761332550267,0.2,192.2,192.19,41.98318434]
[1761332550472,0.2,192.2,192.19,44.23622362]
[1761332550969,0.2,192.2,192.19,78.59965183]
[1761332551873,0.2,192.2,192.19,80.85269111]
[1761332556674,0.2,192.23,192.2,36.41646749]
[1761332556843,0.2,192.23,192.21,36.08]
[1761332557048,0.2,192.23,192.21,36.76]
[1761332557777,0.2,192.23,192.21,41.9625062]
[1761332558477,0.2,192.23,192.21,44.21554548]
[1761332558863,0.2,192.23,192.21,41.9625062]
[1761332559048,0.2,192.23,192.21,44.21554548]
[1761332561478,0.2,192.23,192.21,43.53554548]
[1761332561676,0.88,192.23,192.21,41.2825062]
[1761332562560,0.2,192.23,192.21,77.69897369]
[1761332562758,0.2,192.23,192.21,78.37897369]
[1761332562976,0.2,192.23,192.21,77.69897369]
[1761332563478,0.88,192.23,192.21,77.69897369]
[1761332563657,0.88,192.23,192.21,72.49646749]
[1761332564366,0.88,192.23,192.21,77.69902414]
[1761332564567,0.88,192.23,192.21,77.67902414]
[1761332564979,0.2,192.23,192.22,0.68]
[1761332565481,0.2,192.23,192.21,77.67902414]
[1761332566979,0.2,192.23,192.21,78.35902414]
[1761332567172,0.2,192.23,192.22,0.68]
[1761332567566,0.2,192.23,192.21,79.93206342]
[1761332567766,0.2,192.23,192.21,80.61206342]
[1761332567984,0.2,192.23,192.22,2.93303928]
[1761332568362,0.2,192.23,192.22,39.01303928]
[1761332568885,0.2,192.23,192.22,48.08644898]
[1761332569064,0.2,192.23,192.22,45.8334097]
[1761332569268,0.2,192.23,192.22,84.50291647]
[1761332571176,0.2,192.23,192.22,95.37939168]
[1761332571569,0.2,192.23,192.22,84.50291647]
[1761332571880,0.2,192.23,192.22,48.42291647]
[1761332572198,0.2,192.23,192.22,84.52291647]
[1761332573196,0.2,192.23,192.22,48.42291647]
[1761332573366,0.2,192.23,192.22,84.52291647]
[1761332573564,0.2,192.23,192.22,48.42291647]
[1761332573874,0.2,192.23,192.22,84.52291647]
[1761332574589,0.69,192.29,192.26,41.4177574]
[1761332574769,0.1,192.32,192.27,39.97103742]
[1761332574770,0.69,192.3,192.27,39.97103742]
[1761332575085,2.94303928,192.31,192.28,3.87103742]
[1761332575392,2.94303928,192.31,192.27,36.1]
[1761332575686,28.17967613,192.32,192.21,0.7]
[1761332575687,2.25303928,192.28,192.21,0.7]
[1761332575896,2.94303928,192.27,192.22,45.17361788]
[1761332576096,2.94303928,192.27,192.23,3.8712456]
[1761332576391,2.94303928,192.27,192.24,3.8712456]
[1761332576582,2.94303928,192.27,192.25,39.9912456]
[1761332576763,2.94303928,192.27,192.25,36.12]
[1761332577463,2.94303928,192.26,192.25,36.12]
[1761332577665,2.94303928,192.26,192.25,39.99283362]
[1761332579279,2.94303928,192.26,192.25,36.12]
[1761332580168,2.94303928,192.26,192.25,45.19353974]
[1761332580593,0.69,192.26,192.25,45.19353974]
[1761332581691,2.94303928,192.26,192.25,45.19353974]
[1761332582767,2.94303928,192.26,192.25,40.08844677]
[1761332582966,2.94303928,192.26,192.25,36.21646749]
[1761332582967,8.14432919,192.26,192.25,36.21646749]
[1761332584395,19.0208044,192.26,192.2,36.21646749]
[1761332584574,2.25303928,192.21,192.2,36.21646749]
[1761332585087,2.94303928,192.21,192.2,36.21646749]
[1761332585568,2.25303928,192.21,192.2,36.21646749]
[1761332585978,2.94303928,192.21,192.2,36.21646749]
[1761332586192,2.94303928,192.21,192.18,42.04338326]
[1761332586396,2.25303928,192.2,192.18,36.12]
[1761332586697,2.25303928,192.19,192.18,36.12]
[1761332587198,2.94303928,192.19,192.18,36.12]
[1761332588074,2.94303928,192.19,192.15,0.72]
[1761332588277,2.25303928,192.17,192.16,36.12]
[1761332588674,2.94303928,192.18,192.16,36.12]
[1761332589185,2.94303928,192.18,192.16,41.32399346]
[1761332590286,2.94303928,192.17,192.16,98.12]
[1761332590878,2.94303928,192.17,192.13,5.20480924]
[1761332591092,0.69,192.16,192.13,98.12]
[1761332591272,2.25303928,192.14,192.13,98.12]
[1761332591789,2.94303928,192.14,192.13,36.12]
[1761332592091,2.25303928,192.14,192.13,36.12]
[1761332592394,0.69,192.16,192.13,36.12]
[1761332592594,2.25303928,192.14,192.13,36.12]
[1761332592890,3.52468316,192.14,192.13,36.12]
[1761332593082,3.52468316,192.14,192.13,41.32480924]
[1761332593285,3.52468316,192.14,192.13,36.12]
[1761332594189,3.52468316,192.14,192.13,41.32480924]
[1761332594383,4.21468316,192.15,192.13,41.32480924]
[1761332594575,3.52468316,192.15,192.13,41.32480924]
[1761332595294,4.21468316,192.15,192.13,103.32480924]
[1761332595682,3.52468316,192.15,192.13,103.32480924]
[1761332596985,3.52468316,192.18,192.14,0.72]
[1761332597187,4.21468316,192.19,192.15,36.14]
[1761332597578,3.52468316,192.19,192.15,36.86]
[1761332597785,3.52468316,192.17,192.15,36.14]
[1761332598180,4.21468316,192.17,192.15,36.14]
[1761332598385,3.52468316,192.18,192.15,36.86]
[1761332598594,3.52468316,192.18,192.15,36.14]
[1761332598771,0.69,192.17,192.15,41.34426352]
[1761332599189,4.21468316,192.18,192.15,41.34426352]
[1761332599892,0.68,192.17,192.15,41.34426352]
[1761332600892,3.52468316,192.18,192.15,41.34426352]
[1761332601099,4.20468316,192.18,192.15,41.34426352]
[1761332601302,4.20468316,192.18,192.15,103.34426352]
[1761332601800,4.20468316,192.17,192.15,98.14]
[1761332602096,3.52468316,192.16,192.15,62.0]
[1761332602298,4.20468316,192.16,192.15,62.0]
[1761332602795,3.52468316,192.16,192.15,62.0]
[1761332603282,3.52468316,192.17,192.15,62.0]
[1761332603488,3.52468316,192.16,192.15,62.0]
[1761332603800,5.20426749,192.15,192.13,62.0]
[1761332603987,3.52468316,192.14,192.13,62.0]
[1761332604300,4.20468316,192.14,192.13,62.0]
[1761332613295,0.68,192.14,192.13,62.0]
[1761332613595,4.20468316,192.14,192.13,62.0]
[1761332616325,27.08468316,192.14,192.13,62.0]
[1761332616490,32.28922151,192.14,192.13,62.0]
[1761332616691,4.20468316,192.14,192.13,62.0]
[1761332619014,9.40922151,192.14,192.13,62.0]
[1761332619211,9.40922151,192.14,192.1,62.0]
[1761332619407,3.52468316,192.11,192.1,62.0]
[1761332619794,4.20468316,192.11,192.1,62.0]
[1761332620602,0.68,192.11,192.1,62.0]
[1761332620802,4.20468316,192.11,192.1,62.0]
[1761332623119,4.20468316,192.11,192.07,98.8]
[1761332623309,3.52468316,192.09,192.07,98.12]
[1761332623505,3.52468316,192.08,192.07,98.12]
[1761332623913,3.52468316,192.08,192.07,98.8]
[1761332625822,0.68,192.11,192.07,98.8]
[1761332626217,0.68,192.11,192.07,104.00629833]
[1761332626521,3.52468316,192.11,192.08,0.68]
[1761332626911,3.52468316,192.1,192.08,0.68]
[1761332627322,4.20468316,192.11,192.07,103.32629833]
[1761332627519,3.52468316,192.11,192.08,0.68]
[1761332627706,3.52468316,192.1,192.08,0.68]
[1761332627901,3.52468316,192.1,192.08,62.68]
[1761332631133,3.52468316,192.11,192.08,62.0]
[1761332631426,3.52468316,192.13,192.09,0.67]
[1761332631726,4.22468316,192.13,192.09,0.67]
[1761332632531,4.22468316,192.13,192.09,5.87574019]
[1761332632714,4.22468316,192.13,192.1,0.67]
[1761332632909,3.52468316,192.12,192.1,0.67]
[1761332634026,0.7,192.11,192.1,62.0]
[1761332634430,3.52468316,192.11,192.1,62.0]
[1761332637832,3.52468316,192.12,192.1,62.0]
[1761332638009,4.22468316,192.12,192.1,62.0]
[1761332639333,3.52468316,192.11,192.1,62.0]
[1761332641941,4.22468316,192.11,192.1,62.0]
[1761332642847,3.52468316,192.11,192.1,62.0]
[1761332644326,4.22468316,192.11,192.1,62.0]
[1761332645041,3.52468316,192.11,192.1,62.0]
[1761332654658,3.52468316,192.11,192.1,62.7]
[1761332654834,2.25634244,192.12,192.1,62.7]
[1761332655248,2.25634244,192.11,192.1,62.7]
[1761332656549,2.25634244,192.12,192.1,62.7]
[1761332656747,2.25634244,192.13,192.11,0.7]
[1761332656947,2.25634244,192.13,192.11,62.7]
[1761332659960,2.25634244,192.12,192.11,62.7]
[1761332660662,2.25634244,192.12,192.11,62.0]
[1761332661045,5.88462149,192.14,192.11,62.0]
[1761332661244,2.25634244,192.12,192.11,62.0]
[1761332661445,2.25634244,192.12,192.11,62.7]
[1761332662756,2.25634244,192.12,192.11,62.0]
[1761332663073,2.25634244,192.12,192.11,62.7]
[1761332664558,7.46116437,192.13,192.11,62.7]